[Event "Titled Tuesday Blitz January 25 2022"]
[White "Howell, David W L"]
[Black "Tristan, Leonardo"]
[WhiteFideId "410608"]
[BlackFideId "113816"]
[WhiteElo "2559"]
[BlackElo "2404"]
[Result "1-0"]
[Round "05"]
[TimeControl "180+1"]
[Date "2022.01.26"]
[WhiteClock "0:00:15"]
[BlackClock "0:00:02"]

1. d3 {[%clk 0:03:00]}  d5 {[%clk 0:02:59]} 2. d4 {[%clk 0:02:52]}  Nf6 {[%clk 0:02:58]} 3. Nf3 {[%clk 0:02:51]}  Bf5 {[%clk 0:02:58]} 4. c4 {[%clk 0:02:47]}  e6 {[%clk 0:02:58]} 5. Nc3 {[%clk 0:02:46]}  Nbd7 {[%clk 0:02:58]} 6. cxd5 {[%clk 0:02:39]}  exd5 {[%clk 0:02:58]} 7. Bg5 {[%clk 0:02:40]}  c6 {[%clk 0:02:58]} 8. e3 {[%clk 0:02:40]}  Qb6 {[%clk 0:02:58]} 9. Bd3 {[%clk 0:02:20]}  Qxb2 {[%clk 0:02:57]} 10. Bxf5 {[%clk 0:02:17]}  Qxc3+ {[%clk 0:02:57]} 11. Nd2 {[%clk 0:02:18]}  Bb4 {[%clk 0:02:43]} 12. Rb1 {[%clk 0:02:10]}  Ne4 {[%clk 0:01:59]} 13. Bxe4 {[%clk 0:02:09]}  dxe4 {[%clk 0:02:00]} 14. Rb3 {[%clk 0:02:10]}  Qc4 {[%clk 0:01:51]} 15. Qb1 {[%clk 0:02:04]}  Bxd2+ {[%clk 0:01:29]} 16. Kxd2 {[%clk 0:02:05]}  Qd5 {[%clk 0:01:30]} 17. Bf4 {[%clk 0:01:57]}  Nb6 {[%clk 0:01:30]} 18. Rc1 {[%clk 0:01:54]}  Nc4+ {[%clk 0:01:30]} 19. Rxc4 {[%clk 0:01:41]}  Qxc4 {[%clk 0:01:31]} 20. Qxe4+ {[%clk 0:01:42]}  Qe6 {[%clk 0:01:31]} 21. Qxe6+ {[%clk 0:01:41]}  fxe6 {[%clk 0:01:32]} 22. Rxb7 {[%clk 0:01:42]}  O-O {[%clk 0:01:32]} 23. Kc3 {[%clk 0:01:29]}  Rf7 {[%clk 0:01:30]} 24. Rb2 {[%clk 0:01:28]}  h6 {[%clk 0:01:26]} 25. Kc4 {[%clk 0:01:26]}  Rd8 {[%clk 0:01:12]} 26. Kc5 {[%clk 0:01:13]}  Rc8 {[%clk 0:00:42]} 27. Bd6 {[%clk 0:01:03]}  Rf5+ {[%clk 0:00:42]} 28. Be5 {[%clk 0:01:03]}  Rf7 {[%clk 0:00:41]} 29. h4 {[%clk 0:00:52]}  Rd7 {[%clk 0:00:41]} 30. e4 {[%clk 0:00:51]}  h5 {[%clk 0:00:31]} 31. Rb3 {[%clk 0:00:50]}  Rf7 {[%clk 0:00:28]} 32. f4 {[%clk 0:00:44]}  Kh7 {[%clk 0:00:24]} 33. a4 {[%clk 0:00:41]}  Kg8 {[%clk 0:00:14]} 34. a5 {[%clk 0:00:41]}  Kf8 {[%clk 0:00:14]} 35. a6 {[%clk 0:00:40]}  Ke8 {[%clk 0:00:14]} 36. Bd6 {[%clk 0:00:34]}  Rd7 {[%clk 0:00:13]} 37. Be5 {[%clk 0:00:31]}  Rf7 {[%clk 0:00:13]} 38. Rg3 {[%clk 0:00:31]}  Kf8 {[%clk 0:00:13]} 39. Rg5 {[%clk 0:00:30]}  Kg8 {[%clk 0:00:06]} 40. Rxh5 {[%clk 0:00:29]}  Rcf8 {[%clk 0:00:07]} 41. g3 {[%clk 0:00:28]}  Rd7 {[%clk 0:00:05]} 42. Rg5 {[%clk 0:00:27]}  Kh7 {[%clk 0:00:06]} 43. h5 {[%clk 0:00:26]}  Kh6 {[%clk 0:00:06]} 44. g4 {[%clk 0:00:26]}  Kh7 {[%clk 0:00:05]} 45. Rg6 {[%clk 0:00:26]}  Rdf7 {[%clk 0:00:06]} 46. Rxe6 {[%clk 0:00:26]}  Rxf4 {[%clk 0:00:06]} 47. Bxf4 {[%clk 0:00:26]}  Rxf4 {[%clk 0:00:07]} 48. g5 {[%clk 0:00:26]}  Rf1 {[%clk 0:00:07]} 49. Kxc6 {[%clk 0:00:26]}  Rb1 {[%clk 0:00:08]} 50. d5 {[%clk 0:00:25]}  Rh1 {[%clk 0:00:05]} 51. h6 {[%clk 0:00:23]}  Rc1+ {[%clk 0:00:03]} 52. Kd7 {[%clk 0:00:23]}  Rb1 {[%clk 0:00:02]} 53. hxg7 {[%clk 0:00:22]}  Kg8 {[%clk 0:00:02]} 54. Rc6 {[%clk 0:00:19]}  Kh7 {[%clk 0:00:02]} 55. e5 {[%clk 0:00:18]}  Rf1 {[%clk 0:00:02]} 56. d6 {[%clk 0:00:17]}  Re1 {[%clk 0:00:02]} 57. Ke6 {[%clk 0:00:17]}  Rg1 {[%clk 0:00:02]} 58. d7 {[%clk 0:00:18]}  Rd1 {[%clk 0:00:03]} 59. Rd6 {[%clk 0:00:18]}  Rf1 {[%clk 0:00:02]} 60. d8=Q {[%clk 0:00:17]}  Rf6+ {[%clk 0:00:02]} 61. Qxf6 {[%clk 0:00:15]} 1-0


[Site "https://www.chess.com"]

[Event "Titled Tuesday Blitz January 25 2022"]
[White "Ibrahimli, Murad"]
[Black "Vakhlamov, Igor L."]
[WhiteFideId "13410229"]
[BlackFideId "24126748"]
[WhiteElo "2109"]
[BlackElo "2401"]
[Result "1/2-1/2"]
[Round "05"]
[TimeControl "180+1"]
[Date "2022.01.26"]
[WhiteClock "0:00:24"]
[BlackClock "0:00:40"]

1. Nf3 {[%clk 0:03:00]}  Nf6 {[%clk 0:02:59]} 2. d4 {[%clk 0:02:57]}  d5 {[%clk 0:02:58]} 3. Bf4 {[%clk 0:02:56]}  Bf5 {[%clk 0:02:59]} 4. e3 {[%clk 0:02:56]}  e6 {[%clk 0:02:58]} 5. Bd3 {[%clk 0:02:53]}  Bxd3 {[%clk 0:02:55]} 6. cxd3 {[%clk 0:02:54]}  Bd6 {[%clk 0:02:55]} 7. Bg3 {[%clk 0:02:54]}  O-O {[%clk 0:02:55]} 8. Nc3 {[%clk 0:02:53]}  c5 {[%clk 0:02:53]} 9. dxc5 {[%clk 0:02:51]}  Bxc5 {[%clk 0:02:53]} 10. Rc1 {[%clk 0:02:51]}  Nc6 {[%clk 0:02:52]} 11. O-O {[%clk 0:02:51]}  Bd6 {[%clk 0:02:51]} 12. Bh4 {[%clk 0:02:50]}  Rc8 {[%clk 0:02:49]} 13. a3 {[%clk 0:02:47]}  Be7 {[%clk 0:02:47]} 14. Ne2 {[%clk 0:02:42]}  Nd7 {[%clk 0:02:44]} 15. Bg3 {[%clk 0:02:41]}  a6 {[%clk 0:02:42]} 16. Ned4 {[%clk 0:02:12]}  Qb6 {[%clk 0:02:38]} 17. Qb3 {[%clk 0:01:56]}  Nxd4 {[%clk 0:02:02]} 18. Nxd4 {[%clk 0:01:57]}  h6 {[%clk 0:01:46]} 19. Bc7 {[%clk 0:01:46]}  Qxb3 {[%clk 0:01:44]} 20. Nxb3 {[%clk 0:01:46]}  Nc5 {[%clk 0:01:31]} 21. Nxc5 {[%clk 0:01:39]}  Rxc7 {[%clk 0:01:32]} 22. Nb3 {[%clk 0:01:35]}  Rfc8 {[%clk 0:01:31]} 23. Rxc7 {[%clk 0:01:35]}  Rxc7 {[%clk 0:01:32]} 24. Rc1 {[%clk 0:01:35]}  Rxc1+ {[%clk 0:01:32]} 25. Nxc1 {[%clk 0:01:36]}  Kf8 {[%clk 0:01:29]} 26. Kf1 {[%clk 0:01:35]}  Ke8 {[%clk 0:01:29]} 27. Ke2 {[%clk 0:01:35]}  Kd7 {[%clk 0:01:30]} 28. f4 {[%clk 0:01:35]}  Kc6 {[%clk 0:01:29]} 29. Kd2 {[%clk 0:01:33]}  Bf6 {[%clk 0:01:23]} 30. Kc2 {[%clk 0:01:32]}  b6 {[%clk 0:01:23]} 31. Ne2 {[%clk 0:01:31]}  Kc5 {[%clk 0:01:18]} 32. Ng1 {[%clk 0:01:30]}  Be7 {[%clk 0:01:13]} 33. Nf3 {[%clk 0:01:30]}  f6 {[%clk 0:01:11]} 34. b4+ {[%clk 0:01:29]}  Kd6 {[%clk 0:01:10]} 35. Kb3 {[%clk 0:01:18]}  Bd8 {[%clk 0:01:08]} 36. Nd4 {[%clk 0:01:06]}  g6 {[%clk 0:01:06]} 37. g4 {[%clk 0:01:02]}  e5 {[%clk 0:01:04]} 38. Ne2 {[%clk 0:01:00]}  Bc7 {[%clk 0:00:59]} 39. f5 {[%clk 0:00:57]}  g5 {[%clk 0:00:53]} 40. e4 {[%clk 0:00:56]}  d4 {[%clk 0:00:50]} 41. b5 {[%clk 0:00:42]}  axb5 {[%clk 0:00:46]} 42. Ng3 {[%clk 0:00:43]}  Bd8 {[%clk 0:00:40]} 43. Nh5 {[%clk 0:00:43]}  Be7 {[%clk 0:00:39]} 44. Ng7 {[%clk 0:00:43]}  Kd7 {[%clk 0:00:36]} 45. Nh5 {[%clk 0:00:37]}  Kc6 {[%clk 0:00:35]} 46. Ng3 {[%clk 0:00:38]}  Kd7 {[%clk 0:00:35]} 47. Nf1 {[%clk 0:00:38]}  Kc6 {[%clk 0:00:36]} 48. h3 {[%clk 0:00:37]}  Kd7 {[%clk 0:00:36]} 49. Nh2 {[%clk 0:00:37]}  Kc6 {[%clk 0:00:36]} 50. Nf3 {[%clk 0:00:38]}  Kd7 {[%clk 0:00:34]} 51. Ne1 {[%clk 0:00:38]}  Kc6 {[%clk 0:00:35]} 52. Nc2 {[%clk 0:00:39]}  Kd7 {[%clk 0:00:34]} 53. Kb2 {[%clk 0:00:28]}  Kc6 {[%clk 0:00:33]} 54. Ka2 {[%clk 0:00:28]}  Kd7 {[%clk 0:00:34]} 55. Kb3 {[%clk 0:00:28]}  Kc7 {[%clk 0:00:34]} 56. Ne1 {[%clk 0:00:20]}  Kd7 {[%clk 0:00:34]} 57. Nf3 {[%clk 0:00:20]}  Kc7 {[%clk 0:00:34]} 58. Nh2 {[%clk 0:00:21]}  Kd7 {[%clk 0:00:34]} 59. Nf1 {[%clk 0:00:22]}  Kc7 {[%clk 0:00:34]} 60. Ng3 {[%clk 0:00:22]}  Kd7 {[%clk 0:00:34]} 61. Ne2 {[%clk 0:00:23]}  Kc7 {[%clk 0:00:34]} 62. Nc1 {[%clk 0:00:24]}  Kd7 {[%clk 0:00:33]} 63. Na2 {[%clk 0:00:25]}  Kc7 {[%clk 0:00:32]} 64. Nc1 {[%clk 0:00:24]}  Kd7 {[%clk 0:00:32]} 65. Ne2 {[%clk 0:00:24]}  Kc7 {[%clk 0:00:33]} 66. Ng1 {[%clk 0:00:25]}  Kd7 {[%clk 0:00:33]} 67. Nf3 {[%clk 0:00:26]}  Kc7 {[%clk 0:00:33]} 68. h4 {[%clk 0:00:26]}  Kd7 {[%clk 0:00:33]} 69. hxg5 {[%clk 0:00:25]}  hxg5 {[%clk 0:00:34]} 70. Ng1 {[%clk 0:00:25]}  Kc7 {[%clk 0:00:34]} 71. Ne2 {[%clk 0:00:25]}  Kd7 {[%clk 0:00:35]} 72. Ng3 {[%clk 0:00:26]}  Kc7 {[%clk 0:00:35]} 73. Nh1 {[%clk 0:00:26]}  Kd7 {[%clk 0:00:35]} 74. Nf2 {[%clk 0:00:26]}  Kc7 {[%clk 0:00:36]} 75. Nd1 {[%clk 0:00:27]}  Kd7 {[%clk 0:00:36]} 76. Nb2 {[%clk 0:00:28]}  Kc7 {[%clk 0:00:36]} 77. Nd1 {[%clk 0:00:17]}  Kd7 {[%clk 0:00:36]} 78. Nf2 {[%clk 0:00:18]}  Kc7 {[%clk 0:00:36]} 79. Nh3 {[%clk 0:00:18]}  Kd7 {[%clk 0:00:35]} 80. Ng1 {[%clk 0:00:19]}  Kc7 {[%clk 0:00:36]} 81. Nf3 {[%clk 0:00:20]}  Kd7 {[%clk 0:00:36]} 82. Nd2 {[%clk 0:00:20]}  Kc7 {[%clk 0:00:36]} 83. Nf1 {[%clk 0:00:16]}  Kd7 {[%clk 0:00:36]} 84. Ng3 {[%clk 0:00:17]}  Kc7 {[%clk 0:00:36]} 85. Ne2 {[%clk 0:00:18]}  Kd7 {[%clk 0:00:36]} 86. Nc1 {[%clk 0:00:18]}  Kc7 {[%clk 0:00:36]} 87. Na2 {[%clk 0:00:19]}  Kd7 {[%clk 0:00:35]} 88. Nb4 {[%clk 0:00:16]}  Bxb4 {[%clk 0:00:35]} 89. axb4 {[%clk 0:00:17]}  Kc7 {[%clk 0:00:35]} 90. Kc2 {[%clk 0:00:18]}  Kd7 {[%clk 0:00:36]} 91. Kd2 {[%clk 0:00:19]}  Kc7 {[%clk 0:00:36]} 92. Ke2 {[%clk 0:00:19]}  Kd7 {[%clk 0:00:37]} 93. Kf2 {[%clk 0:00:20]}  Kc7 {[%clk 0:00:38]} 94. Kg2 {[%clk 0:00:21]}  Kd7 {[%clk 0:00:38]} 95. Kf2 {[%clk 0:00:22]}  Kc7 {[%clk 0:00:39]} 96. Kg2 {[%clk 0:00:23]}  Kd7 {[%clk 0:00:40]} 97. Kf2 {[%clk 0:00:24]} 1/2-1/2


[Site "https://www.chess.com"]

[Event "Titled Tuesday Blitz January 25 2022"]
[White "Iskusnyh, Sergei"]
[Black "Abarca Gonzalez, Nicolas"]
[WhiteFideId "4120027"]
[BlackFideId "3409422"]
[WhiteElo "2492"]
[BlackElo "2504"]
[Result "0-1"]
[Round "05"]
[TimeControl "180+1"]
[Date "2022.01.26"]
[WhiteClock "0:00:36"]
[BlackClock "0:01:08"]

1. d4 {[%clk 0:03:00]}  Nf6 {[%clk 0:02:57]} 2. c4 {[%clk 0:03:00]}  e5 {[%clk 0:02:55]} 3. dxe5 {[%clk 0:02:59]}  Ng4 {[%clk 0:02:55]} 4. e3 {[%clk 0:02:59]}  Nxe5 {[%clk 0:02:53]} 5. Nh3 {[%clk 0:02:58]}  d5 {[%clk 0:02:53]} 6. cxd5 {[%clk 0:02:49]}  Bxh3 {[%clk 0:02:51]} 7. gxh3 {[%clk 0:02:49]}  Bd6 {[%clk 0:02:41]} 8. Bg2 {[%clk 0:02:40]}  Ng6 {[%clk 0:02:37]} 9. Nc3 {[%clk 0:02:35]}  O-O {[%clk 0:02:34]} 10. Bd2 {[%clk 0:02:20]}  Nh4 {[%clk 0:02:33]} 11. Be4 {[%clk 0:01:38]}  f5 {[%clk 0:02:33]} 12. Bc2 {[%clk 0:01:38]}  Nd7 {[%clk 0:02:30]} 13. Qh5 {[%clk 0:01:32]}  Ne5 {[%clk 0:02:28]} 14. O-O-O {[%clk 0:01:29]}  b5 {[%clk 0:02:16]} 15. Kb1 {[%clk 0:01:16]}  Nhf3 {[%clk 0:02:11]} 16. Bc1 {[%clk 0:01:09]}  b4 {[%clk 0:02:09]} 17. Nb5 {[%clk 0:01:05]}  a5 {[%clk 0:02:03]} 18. Nd4 {[%clk 0:01:04]}  g6 {[%clk 0:01:56]} 19. Qh6 {[%clk 0:00:59]}  Nf7 {[%clk 0:01:49]} 20. Qxf8+ {[%clk 0:00:51]}  Qxf8 {[%clk 0:01:45]} 21. Nxf3 {[%clk 0:00:52]}  a4 {[%clk 0:01:43]} 22. Bd3 {[%clk 0:00:51]}  a3 {[%clk 0:01:37]} 23. b3 {[%clk 0:00:49]}  Ne5 {[%clk 0:01:34]} 24. Nd4 {[%clk 0:00:49]}  Nxd3 {[%clk 0:01:28]} 25. Rxd3 {[%clk 0:00:50]}  Qe7 {[%clk 0:01:28]} 26. Ne6 {[%clk 0:00:49]}  Be5 {[%clk 0:01:18]} 27. f4 {[%clk 0:00:46]}  Bh8 {[%clk 0:01:17]} 28. Rhd1 {[%clk 0:00:42]}  Qf6 {[%clk 0:01:17]} 29. Nd4 {[%clk 0:00:40]}  Rd8 {[%clk 0:01:15]} 30. Bd2 {[%clk 0:00:38]}  Rxd5 {[%clk 0:01:12]} 31. Bxb4 {[%clk 0:00:38]}  c5 {[%clk 0:01:13]} 32. Bc3 {[%clk 0:00:38]}  cxd4 {[%clk 0:01:13]} 33. Bxd4 {[%clk 0:00:38]}  Qa6 {[%clk 0:01:12]} 34. Rc3 {[%clk 0:00:35]}  Bxd4 {[%clk 0:01:10]} 35. exd4 {[%clk 0:00:36]}  Qe2 {[%clk 0:01:08]} 0-1


[Site "https://www.chess.com"]

[Event "Titled Tuesday Blitz January 25 2022"]
[White "Kamsky, Gata"]
[Black "Nastore, Pavel-Alexandru"]
[WhiteFideId "2000024"]
[BlackFideId "1255002"]
[WhiteElo "2645"]
[BlackElo "1763"]
[Result "1/2-1/2"]
[Round "05"]
[TimeControl "180+1"]
[Date "2022.01.26"]
[WhiteClock "0:00:10"]
[BlackClock "0:00:06"]

1. d4 {[%clk 0:03:00]}  Nf6 {[%clk 0:02:38]} 2. Nf3 {[%clk 0:02:58]}  d5 {[%clk 0:02:35]} 3. Bf4 {[%clk 0:02:55]}  c6 {[%clk 0:02:32]} 4. e3 {[%clk 0:02:54]}  Bf5 {[%clk 0:02:27]} 5. c4 {[%clk 0:02:53]}  e6 {[%clk 0:02:24]} 6. Nc3 {[%clk 0:02:52]}  Bd6 {[%clk 0:02:23]} 7. Bxd6 {[%clk 0:02:49]}  Qxd6 {[%clk 0:02:24]} 8. Qb3 {[%clk 0:02:48]}  Qe7 {[%clk 0:02:15]} 9. Be2 {[%clk 0:02:42]}  O-O {[%clk 0:02:14]} 10. O-O {[%clk 0:02:41]}  dxc4 {[%clk 0:02:01]} 11. Bxc4 {[%clk 0:02:39]}  b5 {[%clk 0:02:01]} 12. Be2 {[%clk 0:02:39]}  Nbd7 {[%clk 0:02:01]} 13. Rfc1 {[%clk 0:02:22]}  Rfc8 {[%clk 0:01:56]} 14. Nh4 {[%clk 0:02:01]}  Bg6 {[%clk 0:01:44]} 15. Nxg6 {[%clk 0:01:59]}  hxg6 {[%clk 0:01:42]} 16. Bf3 {[%clk 0:01:46]}  Rab8 {[%clk 0:01:30]} 17. a4 {[%clk 0:01:27]}  b4 {[%clk 0:01:18]} 18. Ne2 {[%clk 0:01:14]}  c5 {[%clk 0:01:15]} 19. a5 {[%clk 0:01:09]}  Qd6 {[%clk 0:00:56]} 20. g3 {[%clk 0:00:58]}  cxd4 {[%clk 0:00:55]} 21. Nxd4 {[%clk 0:00:56]}  Nc5 {[%clk 0:00:54]} 22. Qd1 {[%clk 0:00:55]}  e5 {[%clk 0:00:35]} 23. Nb3 {[%clk 0:00:47]}  Qxd1+ {[%clk 0:00:33]} 24. Bxd1 {[%clk 0:00:47]}  Nd3 {[%clk 0:00:30]} 25. Rxc8+ {[%clk 0:00:45]}  Rxc8 {[%clk 0:00:30]} 26. Rb1 {[%clk 0:00:44]}  Ne4 {[%clk 0:00:22]} 27. f3 {[%clk 0:00:42]}  Nec5 {[%clk 0:00:21]} 28. Nxc5 {[%clk 0:00:38]}  Rxc5 {[%clk 0:00:20]} 29. Be2 {[%clk 0:00:37]}  Nc1 {[%clk 0:00:19]} 30. Bf1 {[%clk 0:00:35]}  Nb3 {[%clk 0:00:20]} 31. Rd1 {[%clk 0:00:33]}  Nxa5 {[%clk 0:00:14]} 32. Rd8+ {[%clk 0:00:33]}  Kh7 {[%clk 0:00:15]} 33. Rd7 {[%clk 0:00:34]}  Nc4 {[%clk 0:00:14]} 34. Bxc4 {[%clk 0:00:33]}  Rxc4 {[%clk 0:00:14]} 35. Rxf7 {[%clk 0:00:30]}  Rc1+ {[%clk 0:00:12]} 36. Kg2 {[%clk 0:00:29]}  Rc2+ {[%clk 0:00:13]} 37. Kh3 {[%clk 0:00:30]}  Rxb2 {[%clk 0:00:11]} 38. Rxa7 {[%clk 0:00:30]}  b3 {[%clk 0:00:10]} 39. Rb7 {[%clk 0:00:30]}  Kg8 {[%clk 0:00:08]} 40. e4 {[%clk 0:00:29]}  Kf8 {[%clk 0:00:07]} 41. Kg4 {[%clk 0:00:29]}  Rxh2 {[%clk 0:00:05]} 42. Rxb3 {[%clk 0:00:28]}  Kf7 {[%clk 0:00:05]} 43. Rb7+ {[%clk 0:00:27]}  Kf6 {[%clk 0:00:05]} 44. Rb6+ {[%clk 0:00:25]}  Kf7 {[%clk 0:00:06]} 45. Rc6 {[%clk 0:00:25]}  Rg2 {[%clk 0:00:04]} 46. Rc1 {[%clk 0:00:23]}  Rf2 {[%clk 0:00:04]} 47. Rc3 {[%clk 0:00:22]}  Rf1 {[%clk 0:00:04]} 48. Kg5 {[%clk 0:00:21]}  Rg1 {[%clk 0:00:04]} 49. g4 {[%clk 0:00:22]}  Rg3 {[%clk 0:00:03]} 50. Rc7+ {[%clk 0:00:21]}  Ke6 {[%clk 0:00:04]} 51. Rxg7 {[%clk 0:00:21]}  Rxf3 {[%clk 0:00:04]} 52. Rxg6+ {[%clk 0:00:20]}  Kf7 {[%clk 0:00:04]} 53. Rb6 {[%clk 0:00:20]}  Rf4 {[%clk 0:00:04]} 54. Rb4 {[%clk 0:00:20]}  Ke6 {[%clk 0:00:04]} 55. Kh5 {[%clk 0:00:19]}  Kf6 {[%clk 0:00:05]} 56. g5+ {[%clk 0:00:19]}  Kg7 {[%clk 0:00:04]} 57. Rb7+ {[%clk 0:00:19]}  Kf8 {[%clk 0:00:05]} 58. Kg6 {[%clk 0:00:18]}  Rxe4 {[%clk 0:00:04]} 59. Rb8+ {[%clk 0:00:17]}  Ke7 {[%clk 0:00:05]} 60. Kh6 {[%clk 0:00:18]}  Rh4+ {[%clk 0:00:05]} 61. Kg7 {[%clk 0:00:18]}  e4 {[%clk 0:00:05]} 62. Rb5 {[%clk 0:00:15]}  Ke6 {[%clk 0:00:04]} 63. g6 {[%clk 0:00:14]}  e3 {[%clk 0:00:04]} 64. Rb3 {[%clk 0:00:14]}  Rh3 {[%clk 0:00:04]} 65. Rb8 {[%clk 0:00:13]}  Rg3 {[%clk 0:00:03]} 66. Re8+ {[%clk 0:00:13]}  Kf5 {[%clk 0:00:04]} 67. Kf7 {[%clk 0:00:12]}  Rxg6 {[%clk 0:00:03]} 68. Rxe3 {[%clk 0:00:11]}  Rf6+ {[%clk 0:00:04]} 69. Ke7 {[%clk 0:00:11]}  Rg6 {[%clk 0:00:05]} 70. Kd7 {[%clk 0:00:10]}  Kg5 {[%clk 0:00:05]} 71. Rg3+ {[%clk 0:00:10]}  Kf5 {[%clk 0:00:05]} 72. Rxg6 {[%clk 0:00:10]}  Kxg6 {[%clk 0:00:06]} 1/2-1/2


[Site "https://www.chess.com"]

[Event "Titled Tuesday Blitz January 25 2022"]
[White "Kim, Sergey"]
[Black "Kanyamarala, Trisha"]
[WhiteFideId "13700570"]
[BlackFideId "45004722"]
[WhiteElo "2616"]
[BlackElo "2002"]
[Result "1-0"]
[Round "05"]
[TimeControl "180+1"]
[Date "2022.01.26"]
[WhiteClock "0:00:39"]
[BlackClock "0:00:02"]

1. d4 {[%clk 0:02:55]}  Nf6 {[%clk 0:02:59]} 2. c4 {[%clk 0:02:54]}  e6 {[%clk 0:02:59]} 3. Nc3 {[%clk 0:02:54]}  Bb4 {[%clk 0:02:58]} 4. Qc2 {[%clk 0:02:54]}  d5 {[%clk 0:02:57]} 5. a3 {[%clk 0:02:54]}  Bxc3+ {[%clk 0:02:57]} 6. Qxc3 {[%clk 0:02:55]}  dxc4 {[%clk 0:02:57]} 7. Qxc4 {[%clk 0:02:54]}  O-O {[%clk 0:02:57]} 8. Nf3 {[%clk 0:02:55]}  b6 {[%clk 0:02:58]} 9. g3 {[%clk 0:02:55]}  Ba6 {[%clk 0:02:55]} 10. Qc2 {[%clk 0:02:55]}  Nbd7 {[%clk 0:02:52]} 11. Qc6 {[%clk 0:02:54]}  Rb8 {[%clk 0:02:49]} 12. Bg2 {[%clk 0:02:54]}  Bb7 {[%clk 0:02:48]} 13. Qa4 {[%clk 0:02:53]}  c5 {[%clk 0:02:47]} 14. O-O {[%clk 0:02:53]}  cxd4 {[%clk 0:02:44]} 15. Qxd4 {[%clk 0:02:48]}  Nc5 {[%clk 0:02:39]} 16. Bf4 {[%clk 0:02:29]}  Nb3 {[%clk 0:02:17]} 17. Qxd8 {[%clk 0:02:27]}  Rbxd8 {[%clk 0:02:17]} 18. Rad1 {[%clk 0:02:27]}  Ba6 {[%clk 0:02:14]} 19. Rxd8 {[%clk 0:02:18]}  Rxd8 {[%clk 0:02:14]} 20. Re1 {[%clk 0:02:18]}  h6 {[%clk 0:02:02]} 21. Ne5 {[%clk 0:02:10]}  Nd4 {[%clk 0:01:53]} 22. Nc6 {[%clk 0:02:02]}  Nxe2+ {[%clk 0:01:47]} 23. Kh1 {[%clk 0:01:51]}  Re8 {[%clk 0:01:23]} 24. Be3 {[%clk 0:01:30]}  Ng4 {[%clk 0:01:12]} 25. Nxa7 {[%clk 0:01:25]}  f5 {[%clk 0:00:46]} 26. Bf3 {[%clk 0:01:16]}  Re7 {[%clk 0:00:20]} 27. Nc6 {[%clk 0:01:13]}  Rc7 {[%clk 0:00:20]} 28. Nb4 {[%clk 0:01:12]}  Bb5 {[%clk 0:00:02]} 29. Bxe2 {[%clk 0:01:05]}  Ba4 {[%clk 0:00:02]} 30. Bxb6 {[%clk 0:00:59]}  Rd7 {[%clk 0:00:01]} 31. f3 {[%clk 0:00:55]}  Ne5 {[%clk 0:00:01]} 32. Be3 {[%clk 0:00:53]}  Nc6 {[%clk 0:00:01]} 33. Nxc6 {[%clk 0:00:52]}  Bxc6 {[%clk 0:00:02]} 34. Rd1 {[%clk 0:00:50]}  Rb7 {[%clk 0:00:03]} 35. Rd2 {[%clk 0:00:50]}  Bd5 {[%clk 0:00:03]} 36. Kg2 {[%clk 0:00:49]}  g5 {[%clk 0:00:03]} 37. Kf2 {[%clk 0:00:49]}  Kf7 {[%clk 0:00:03]} 38. Bd4 {[%clk 0:00:49]}  Kg6 {[%clk 0:00:02]} 39. Bc3 {[%clk 0:00:48]}  Rc7 {[%clk 0:00:02]} 40. a4 {[%clk 0:00:46]}  Ra7 {[%clk 0:00:02]} 41. a5 {[%clk 0:00:47]}  Rb7 {[%clk 0:00:03]} 42. a6 {[%clk 0:00:46]}  Ra7 {[%clk 0:00:03]} 43. Bd4 {[%clk 0:00:46]}  Ra8 {[%clk 0:00:03]} 44. a7 {[%clk 0:00:47]}  g4 {[%clk 0:00:03]} 45. fxg4 {[%clk 0:00:45]}  fxg4 {[%clk 0:00:04]} 46. Bxg4 {[%clk 0:00:44]}  Kg5 {[%clk 0:00:04]} 47. Bf3 {[%clk 0:00:44]}  Rf8 {[%clk 0:00:03]} 48. Rd3 {[%clk 0:00:44]}  e5 {[%clk 0:00:03]} 49. Bxe5 {[%clk 0:00:42]}  Bc4 {[%clk 0:00:02]} 50. Ra3 {[%clk 0:00:39]} 1-0


[Site "https://www.chess.com"]

[Event "Titled Tuesday Blitz January 25 2022"]
[White "Klimkowski, Jan"]
[Black "Gnechko, Ruslan"]
[WhiteFideId "21856222"]
[BlackFideId "14135868"]
[WhiteElo "2172"]
[BlackElo "2289"]
[Result "0-1"]
[Round "05"]
[TimeControl "180+1"]
[Date "2022.01.26"]
[WhiteClock "0:00:17"]
[BlackClock "0:00:35"]

1. e4 {[%clk 0:03:00]}  c6 {[%clk 0:02:59]} 2. d4 {[%clk 0:03:00]}  d5 {[%clk 0:03:00]} 3. e5 {[%clk 0:03:01]}  Bf5 {[%clk 0:03:00]} 4. c4 {[%clk 0:03:01]}  e6 {[%clk 0:02:59]} 5. Nc3 {[%clk 0:03:01]}  Nd7 {[%clk 0:02:59]} 6. h4 {[%clk 0:02:56]}  h5 {[%clk 0:02:58]} 7. Nge2 {[%clk 0:02:55]}  Ne7 {[%clk 0:02:58]} 8. Ng3 {[%clk 0:02:55]}  Bg6 {[%clk 0:02:57]} 9. Be2 {[%clk 0:02:55]}  dxc4 {[%clk 0:02:55]} 10. Bxc4 {[%clk 0:02:51]}  Nb6 {[%clk 0:02:55]} 11. Be2 {[%clk 0:02:51]}  f5 {[%clk 0:02:46]} 12. exf6 {[%clk 0:02:48]}  gxf6 {[%clk 0:02:46]} 13. Nxh5 {[%clk 0:02:47]}  Nf5 {[%clk 0:02:40]} 14. Nf4 {[%clk 0:02:46]}  Bf7 {[%clk 0:02:38]} 15. h5 {[%clk 0:02:40]}  Qxd4 {[%clk 0:02:36]} 16. O-O {[%clk 0:02:28]}  e5 {[%clk 0:02:27]} 17. Qc2 {[%clk 0:02:10]}  Ng3 {[%clk 0:02:02]} 18. Be3 {[%clk 0:01:23]}  Nxe2+ {[%clk 0:02:01]} 19. Ncxe2 {[%clk 0:01:24]}  Qc4 {[%clk 0:01:57]} 20. Qf5 {[%clk 0:01:13]}  exf4 {[%clk 0:01:43]} 21. Bxb6 {[%clk 0:01:08]}  Rxh5 {[%clk 0:01:34]} 22. Qxf6 {[%clk 0:01:05]}  Be7 {[%clk 0:01:24]} 23. Qxf4 {[%clk 0:00:26]}  axb6 {[%clk 0:01:23]} 24. Qe3 {[%clk 0:00:23]}  Qh4 {[%clk 0:01:08]} 25. Qh3 {[%clk 0:00:23]}  Qxh3 {[%clk 0:01:07]} 26. gxh3 {[%clk 0:00:24]}  Rxh3 {[%clk 0:01:03]} 27. Rfe1 {[%clk 0:00:25]}  Kf8 {[%clk 0:01:02]} 28. Nf4 {[%clk 0:00:24]}  Rh4 {[%clk 0:01:00]} 29. Ng2 {[%clk 0:00:25]}  Rg4 {[%clk 0:01:00]} 30. f3 {[%clk 0:00:21]}  Bc5+ {[%clk 0:00:59]} 31. Kh2 {[%clk 0:00:20]}  Rg5 {[%clk 0:00:51]} 32. Rad1 {[%clk 0:00:20]}  Kg7 {[%clk 0:00:50]} 33. Re4 {[%clk 0:00:17]}  Rh8+ {[%clk 0:00:49]} 34. Nh4 {[%clk 0:00:18]}  Bf2 {[%clk 0:00:43]} 35. Kh3 {[%clk 0:00:17]}  Be6+ {[%clk 0:00:35]} 0-1


[Site "https://www.chess.com"]